Cogmind - Beta 13 @@@ ROGUE MODE // 2024.04.09 @ 11:29:39 Player: Olafz Result: Destroyed by P-70 Sage with Tesla Rifle Performance ------------- Evolutions (6) 3000 Regions Visited (16) 3200 Robots Destroyed (106) 530 Value Destroyed (2923) 2923 Prototype IDs (30) 600 Alien Tech Used (0) 0 Bonus (889) 889 TOTAL SCORE: 11142 Bonus ------- Follower Combat Kills 89 Entered DSFs 500 Aligned with FarCom 300 Cogmind --------- Core Integrity 0/1150 Matter 228/300 Energy 100/100 System Corruption 20% Temperature Cool (0) Movement Flying (120) Ox1 Location -4/Factory Parts ------- > --- POWER (2) -------- Fusion Compressor > --- PROPULSION (5) --- Improved Linear Gravjet Nuclear Pulse Array > --- UTILITY (10) ----- Improved Signal Interpreter Improved Transmission Jammer > --- WEAPON (2) ------- Heavy Disruptor Cannon > --- INVENTORY (5) ---- Improved Hover Unit Cloaking Device System Shield Peak State ------------ > --- POWER ------------ Light Angular Momentum Engine Micro Fission Core > --- PROPULSION ------- Antigrav System Antigrav System Antigrav System Combat Gravmag System Improved Linear Gravjet > --- UTILITY ---------- Improved Sensor Array Melee Analysis Suite Advanced Melee Analysis Suite Advanced Melee Analysis Suite Improved Target Analyzer Improved Target Analyzer Armor Integrity Analyzer Advanced ECM Suite Cloaking Device Hacking Suite > --- WEAPON ----------- Ripper > --- INVENTORY -------- Advanced Medium Treads Improved Hover Unit Cloaking Device System Shield [Rating: 89] Favorites ----------- Power Light Nuclear Core Engine Improved Ion Engine Power Core Light Nuclear Core Propulsion Potential Leg Treads Light Treads Leg Potential Leg Wheel Wheel Hover Unit Antigrav System Flight Unit Improved VTOL Module Utility Large Storage Unit Device Experimental Sensor Array Storage Large Storage Unit Processor Signal Interpreter Hackware Hacking Suite Protection Utility Shielding Weapon Improved Assault Rifle Energy Cannon Heavy Disruptor Cannon Ballistic Gun Improved Assault Rifle Launcher Rocket Launcher Impact Weapon Power Maul Slashing Weapon Katana Piercing Weapon Spear Build | -11 -10 -10 -9 -9 -9 -8 -8 -7 -6 -6 -5 -5 -5 -5 -5 -4 ------- Run | Yrd Mat Min Mat Min Exi Min Mat Fac Fac DSF Fac Ext Cet Arc Hub Fac Slots Evolved 12 | . . . 2 . . . 2 2 2 . 2 . . . . 2 Power 1 | . . . . . . . . 1 . . . . . . . . Propulsion 3 | . . . . . . . . . 2 . 1 . . . . . Utility 8 | . . . 2 . . . 2 1 . . 1 . . . . 2 Weapon . | . . . . . . . . . . . . . . . . . Parts Attached 166 | 6 25 4 13 5 2 . 17 20 9 4 12 13 1 2 4 29 Power 30 | 1 2 2 1 1 . . 5 7 3 . 1 1 . . . 6 Engine 13 | 1 1 2 1 1 . . 2 2 2 . . . . . . 1 Core 17 | . 1 . . . . . 3 5 1 . 1 1 . . . 5 Reactor . | . . . . . . . . . . . . . . . . . Propulsion 46 | 2 8 1 7 1 2 . . . 3 1 5 1 . . 3 12 Treads 12 | 1 4 . 4 1 . . . . . . . . . . . 2 Leg 13 | . 3 1 3 . 2 . . . 3 1 . . . . . . Wheel 2 | 1 1 . . . . . . . . . . . . . . . Hover 9 | . . . . . . . . . . . . . . . 1 8 Flight 10 | . . . . . . . . . . . 5 1 . . 2 2 Utility 52 | 1 4 . 3 1 . . 5 11 3 2 5 8 . 2 . 7 Device 20 | . 1 . 1 1 . . 1 4 2 1 2 3 . 1 . 3 Storage 4 | 1 2 . . . . . . 1 . . . . . . . . Processor 17 | . 1 . 2 . . . 2 1 1 1 . 5 . 1 . 3 Hackware 7 | . . . . . . . 1 2 . . 3 . . . . 1 Protection 4 | . . . . . . . 1 3 . . . . . . . . Artifact . | . . . . . . . . . . . . . . . . . Weapon 38 | 2 11 1 2 2 . . 7 2 . 1 1 3 1 . 1 4 Energy Gun . | . . . . . . . . . . . . . . . . . Energy Cannon 2 | . . . . . . . . . . . . . . . . 2 Ballistic Gun 22 | 2 11 1 2 2 . . 4 . . . . . . . . . Ballistic Cannon . | . . . . . . . . . . . . . . . . . Launcher 2 | . . . . . . . 2 . . . . . . . . . Special Weapon . | . . . . . . . . . . . . . . . . . Impact Weapon 2 | . . . . . . . . . . . . 1 . . . 1 Slashing Weapon 9 | . . . . . . . 1 2 . . 1 2 1 . 1 1 Piercing Weapon 1 | . . . . . . . . . . 1 . . . . . . Special Melee Weapon . | . . . . . . . . . . . . . . . . . Unidentified Prototypes 4 | . 1 . . 1 . . . . . . 2 . . . . . Parts Lost 79 | . 3 4 1 . . . 8 3 1 12 . 11 4 2 2 28 Power 11 | . . 1 . . . . 2 2 . 2 . . . . . 4 Propulsion 25 | . 2 2 . . . . . . . 4 . 4 1 . 1 11 Utility 28 | . . . . . . . 2 1 1 4 . 5 2 2 1 10 Weapon 15 | . 1 1 1 . . . 4 . . 2 . 2 1 . . 3 Highest Loss Streak 20 | . 3 4 1 . . . 6 2 1 12 . 6 4 6 2 20 To Critical Strikes 2 | . . 1 . . . . . . . . . . . . . 1 Average Slot Usage (%) 89 | . 90 83 96 100 100 100 93 95 99 61 77 86 74 48 51 59 Engine 6 | . 6 12 11 11 11 11 6 2 10 2 . . . . . 2 Core 4 | . 7 . . . . . 2 10 2 . 2 4 5 . . 3 Treads 5 | . 12 . 12 22 10 . . . . . . . . . . 3 Leg 10 | . 12 14 6 . 11 22 18 15 25 11 . . . . . . Flight 2 | . . . . . . . . . . . 26 23 11 5 5 2 Device 7 | . . . 11 11 11 11 5 3 12 8 13 14 5 7 10 9 Storage 7 | . 14 14 11 11 11 11 9 6 6 6 . . . . . . Processor 17 | . 7 14 21 22 22 22 21 22 13 14 11 14 29 29 23 21 Hackware 3 | . . . . . . . 4 6 6 3 15 16 9 . . 1 Protection 2 | . . . . . . . 9 10 6 . . . . . . . Ballistic Gun 13 | . 27 28 22 22 22 22 14 3 . . . . . . . . Slashing Weapon 3 | . . . . . . . . 10 13 9 5 4 11 5 6 5 Naked Turns . | . . . . . . . . . . . . . . . . . Heaviest Build 50 | 13 31 31 34 34 34 34 35 49 50 50 11 15 12 5 8 22 Greatest Support 100 | 10 40 20 40 40 60 60 60 60 100 100 27 27 12 7 12 57 Greatest Overweight (x) 8 | 1 6 7 1 . 1 . . . . 8 . . . . 2 1 Average Overweight (x) . | . . 2 . . . . . . . 1 . . . . . . Largest Inventory Capacity 15 | 8 15 15 15 15 15 15 15 15 15 15 15 5 5 5 5 5 Average Capacity 12 | 7 11 15 15 15 15 15 15 14 15 15 6 5 5 5 5 5 Most Carried 15 | 4 15 15 15 15 15 10 15 15 15 15 11 5 4 4 3 5 Average Carried 10 | 2 10 14 13 14 14 10 10 13 14 13 3 3 2 2 2 2 Final Capacity 15 | 8 15 15 15 15 15 15 15 15 15 15 5 5 5 5 5 5 Final Carried 15 | 4 15 15 15 15 10 10 13 15 15 12 4 3 4 2 3 3 Class Distribution -------------------- 24% | Scavenger-Skirmisher 22% | Mutant 15% | Scavenger-Mutant 8% | Hacker-Sprinter 8% | Scavenger-Assassin 4% | Skirmisher 3% | Infiltrator-Mutant Dominant Class ---------------- Mutant | -10/Materials Mutant | -10/Mines Scavenger-Skirmisher | -9/Materials Scavenger-Skirmisher | -9/Mines Scavenger-Skirmisher | -9/Exiles Scavenger-Skirmisher | -8/Mines Scavenger-Skirmisher | -8/Materials Scavenger-Assassin | -7/Factory Infiltrator-Mutant | -6/Factory Mutant | -6/DSF Hacker-Sprinter | -5/Factory Hacker-Sprinter | -5/Extension Hacker-Gladiator | -5/Cetus Hacker-Gladiator | -5/Archives Ninja | -5/Hub_04(d) Scavenger-Assassin | -4/Factory Resources | -11 -10 -10 -9 -9 -9 -8 -8 -7 -6 -6 -5 -5 -5 -5 -5 -4 ----------- Run | Yrd Mat Min Mat Min Exi Min Mat Fac Fac DSF Fac Ext Cet Arc Hub Fac Matter Collected 2827 | 101 580 244 262 249 . . 290 419 18 14 . 225 20 . 65 340 Remotely . | . . . . . . . . . . . . . . . . . Salvage Created 4077 | . 775 239 393 186 . . 604 638 18 . . 933 20 33 65 173 Parts 221 | . 53 14 19 13 . . 44 37 2 . . 16 2 1 2 18 Haulers Intercepted 4 | . 2 . . . . . 1 1 . . . . . . . . Recyclers Shooed 5 | . . . 4 . . . . 1 . . . . . . . . Parts Field Recycled . | . . . . . . . . . . . . . . . . . Retrieved Matter . | . . . . . . . . . . . . . . . . . Parts Self-Destructed . | . . . . . . . . . . . . . . . . . Prevented . | . . . . . . . . . . . . . . . . . Kills | -11 -10 -10 -9 -9 -9 -8 -8 -7 -6 -6 -5 -5 -5 -5 -5 -4 ------- Run | Yrd Mat Min Mat Min Exi Min Mat Fac Fac DSF Fac Ext Cet Arc Hub Fac Combat Hostiles Destroyed 68 | . 17 7 6 2 . . 17 7 . . . 8 . . 1 3 Melee 16 | . . . . . . . 1 6 . . . 5 . . 1 3 Guns 40 | . 17 7 6 2 . . 7 1 . . . . . . . . AOE 9 | . . . . . . . 9 . . . . . . . . . Classes Destroyed 13 | . 7 1 1 . . . 2 1 . . . . . . . 1 Worker 7 | . 1 1 . 2 . . 1 2 . . . . . . . . Builder 5 | . 1 . . . . . . . . . . 4 . . . . Hauler 4 | . 2 . . . . . 1 1 . . . . . . . . Recycler 10 | . . 1 1 1 . . 1 3 . . . 3 . . . . Operator 8 | . 2 . 1 . . . 1 . 1 . . 1 . 1 . 1 Watcher 4 | . 1 . . . . . 1 . . . . 1 1 . . . Swarmer 19 | . 5 5 . . . . 7 2 . . . . . . . . Grunt 31 | . 12 2 3 . . . 6 3 . . . 4 . . 1 . Sentry 7 | . . . 3 2 . . 1 . . . . 1 . . . . Specialist 2 | . . . . . . . 2 . . . . . . . . . Hunter 5 | . . . . . . . 1 1 . . . 3 . . . . Programmer 3 | . . . . . . . . . . . . . . . . 3 Heavy 1 | . . . . . . . . 1 . . . . . . . . Best Kill Streak 8 | . 4 3 3 5 . . 8 5 1 . . 8 1 1 1 1 Combat Bots Only 6 | . 3 3 3 2 . . 6 3 . . . 5 . . 1 1 Max Kills in Single Turn 3 | . 2 2 1 1 . . 3 1 1 . . 1 1 1 1 1 Gunslinging 1 | . 1 1 . . . . . . . . . . . . . . Exploded 3 | . . . . . . . 3 . . . . . . . . . Melee 1 | . . . . . . . 1 1 . . . 1 . . 1 1 Uniques/NPCs Destroyed . | . . . . . . . . . . . . . . . . . Combat | -11 -10 -10 -9 -9 -9 -8 -8 -7 -6 -6 -5 -5 -5 -5 -5 -4 -------- Run | Yrd Mat Min Mat Min Exi Min Mat Fac Fac DSF Fac Ext Cet Arc Hub Fac Hostile Shots Fired 919 | . 107 66 59 30 . . 158 51 . 101 6 84 34 18 17 188 Missed 306 | . 28 15 21 12 . . 58 15 . 16 4 35 17 9 7 69 Damage Taken 10857 | . 840 527 475 266 . . 1547 970 68 1491 34 992 406 241 208 2792 Core 3662 | . 106 97 119 41 . . 359 213 . 670 17 416 242 155 59 1168 Absorbed by Shields . | . . . . . . . . . . . . . . . . . Redirected to Shielding 96 | . . . . . . . 42 54 . . . . . . . . Regen/Repaired (Parts) 270 | . . . . . . . 11 216 . . . . . . . 43 Core Remaining (%) 44 | 100 . 18 . . . 60 34 69 . 21 . . . . 11 . Volleys Fired 199 | . 80 21 32 13 . 1 37 14 . . . . . . . 1 Largest 2 | . 2 2 2 2 . 2 2 1 . . . . . . . 1 Hottest 110 | . 46 46 46 46 . 46 56 28 . . . . . . . 110 Shots Fired 366 | . 157 40 64 26 . 2 62 14 . . . . . . . 1 Gun 355 | . 157 40 64 26 . 2 52 14 . . . . . . . . Cannon 1 | . . . . . . . . . . . . . . . . 1 Launcher 10 | . . . . . . . 10 . . . . . . . . . Special . | . . . . . . . . . . . . . . . . . Kinetic 355 | . 157 40 64 26 . 2 52 14 . . . . . . . . Thermal . | . . . . . . . . . . . . . . . . . Explosive 10 | . . . . . . . 10 . . . . . . . . . Electromagnetic 1 | . . . . . . . . . . . . . . . . 1 Robot Hit Streak 14 | . 8 10 13 14 . . 6 6 . . . . . . . 6 Robot Miss Streak 4 | . 4 3 3 2 . . 2 1 . . . . . . . . Penetration Max . | . . . . . . . . . . . . . . . . . Secondary Targets 8 | . 3 4 1 . . . . . . . . . . . . . Max Gunslinging Chain 1 | . 1 1 1 . . . . . . . . . . . . . Shots Hit Robots 320 | . 90 30 45 20 . . 40 40 1 11 . 27 1 1 1 13 Core Hits 141 | . 40 14 14 7 . . 31 17 . 1 . 7 1 1 1 7 Critical Kills 1 | . . . . . . . . . . . . 1 . . . . Critical Parts Destroyed 8 | . 1 . . . . . . . . . . 5 . . . 2 Critical Strikes 12 | . 1 . . . . . . 2 . . . 6 . . . 3 Destroy 1 | . 1 . . . . . . . . . . . . . . . Smash 8 | . . . . . . . . . . . . 6 . . . 2 Sever 3 | . . . . . . . . 2 . . . . . . . 1 Melee Attacks 142 | . . . . . . . 1 33 1 12 . 52 17 2 2 22 Impact 45 | . . . . . . . . . . . . 38 . . . 7 Slashing 96 | . . . . . . . 1 33 1 11 . 14 17 2 2 15 Piercing 1 | . . . . . . . . . . 1 . . . . . . Sneak Attacks 20 | . . . . . . . . 10 . . . 8 . 1 . 1 Combat Hostiles 2 | . . . . . . . . 1 . . . 1 . . . . Follow-up Attacks 9 | . . . . . . . . 3 . 1 . 3 1 . . 1 Damage Inflicted 8098 | . 1151 448 626 289 . . 1436 1314 36 352 . 1633 36 105 52 620 Guns 3196 | . 1151 448 626 289 . . 530 152 . . . . . . . . Cannons 7 | . . . . . . . . . . . . . . . . 7 Explosions 872 | . . . . . . . 872 . . . . . . . . . Melee 3998 | . . . . . . . 34 1162 36 352 . 1633 36 105 52 588 Ramming 25 | . . . . . . . . . . . . . . . . 25 Kinetic 3196 | . 1151 448 626 289 . . 530 152 . . . . . . . . Thermal . | . . . . . . . . . . . . . . . . . Explosive 872 | . . . . . . . 872 . . . . . . . . . Electromagnetic 7 | . . . . . . . . . . . . . . . . 7 Impact 1643 | . . . . . . . . . . . . 1445 . . . 198 Slashing 2330 | . . . . . . . 34 1162 36 327 . 188 36 105 52 390 Piercing 25 | . . . . . . . . . . 25 . . . . . . Highest Corruption 20 | . 4 4 . . . . 1 . . 6 . 5 7 7 7 20 Average Corruption 3 | . 3 4 . . . . 1 . . 3 . 4 5 7 7 8 Corruption Purged . | . . . . . . . . . . . . . . . . . Corruption Blocked 8 | . . . . . . . . 8 . . . . . . . . Effects 57 | . 24 10 . . . . 3 . . 1 . 10 . 1 1 7 Message Errors 14 | . 6 4 . . . . 1 . . . . 3 . . . . Matter Fused 12 | . 3 1 . . . . . . . . . 4 . 1 . 3 Heat Flow Errors 8 | . 2 2 . . . . 1 . . . . 1 . . 1 1 Energy Discharges 6 | . 3 . . . . . 1 . . . . . . . . 2 Parts Rejected 1 | . . . . . . . . . . 1 . . . . . . Data Loss (minor) 7 | . 5 . . . . . . . . . . 2 . . . . Data Loss (major) 2 | . 1 1 . . . . . . . . . . . . . . Alerts 2 | . 2 . . . . . . . . . . . . . . . Misdirections 1 | . . . . . . . . . . . . . . . . 1 Weapon Failures 4 | . 2 2 . . . . . . . . . . . . . . Overload Shots . | . . . . . . . . . . . . . . . . . Overflow Damage 761 | . . . . . . . 21 81 26 1 . 503 . . . 129 Projectiles . | . . . . . . . . . . . . . . . . . Explosions 21 | . . . . . . . 21 . . . . . . . . . Melee 740 | . . . . . . . . 81 26 1 . 503 . . . 129 Knockbacks 9 | . . . . . . . . . . . . 8 . . . 1 Impact 9 | . . . . . . . . . . . . 8 . . . 1 Kinetic . | . . . . . . . . . . . . . . . . . Secondary . | . . . . . . . . . . . . . . . . . Self-Inflicted Damage 12 | . . . . . . . . . . . . . . . . 12 Shots . | . . . . . . . . . . . . . . . . . Rammed 7 | . . . . . . . . . . . . . . . . 7 Targets Rammed 7 | . . . . . . . . . . . . . . . . 7 Kicked . | . . . . . . . . . . . . . . . . . Crushed . | . . . . . . . . . . . . . . . . . Highest Temperature 216 | . 131 193 28 4 . . 216 . . . . 77 2 . 200 193 Average Temperature 38 | . 23 46 8 2 . . 105 . . . . 39 2 . 121 28 Received Heat Transfer 1713 | . 414 159 249 63 . . 171 39 . . . 189 153 36 90 150 Siege Activations . | . . . . . . . . . . . . . . . . . Robots Corrupted . | . . . . . . . . . . . . . . . . . Combat Hostiles . | . . . . . . . . . . . . . . . . . Parts Fried 20 | . . . . . . . . . . . . 20 . . . . Impact Corruptions 25 | . . . . . . . . . . . . 20 . . . 5 Robots Melted . | . . . . . . . . . . . . . . . . . Combat Hostiles . | . . . . . . . . . . . . . . . . . Parts Melted . | . . . . . . . . . . . . . . . . . Heat Transferred . | . . . . . . . . . . . . . . . . . Parts Sabotaged . | . . . . . . . . . . . . . . . . . Parts Stolen . | . . . . . . . . . . . . . . . . . Parts Stripped . | . . . . . . . . . . . . . . . . . Power Chain Reactions . | . . . . . . . . . . . . . . . . . Alert | -11 -10 -10 -9 -9 -9 -8 -8 -7 -6 -6 -5 -5 -5 -5 -5 -4 ------- Run | Yrd Mat Min Mat Min Exi Min Mat Fac Fac DSF Fac Ext Cet Arc Hub Fac Peak Influence 416 | . 225 149 252 96 . . 416 316 48 15 15 258 129 101 79 115 Initial 189 | . . 9 57 25 . . . 189 28 2 . 7 71 39 30 29 Average 74 | . 108 92 129 45 . . 89 100 33 . 5 95 84 60 44 17 Maximum Alert Level 2 | . 1 . 1 . . . 2 1 . . . 1 . . . . Low Security (%) 93 | 100 96 100 79 100 . 100 79 85 100 100 100 94 100 100 100 100 Level 1 6 | . 3 . 20 . . . 18 14 . . . 5 . . . . Level 2 . | . . . . . . . 1 . . . . . . . . . Level 3 . | . . . . . . . . . . . . . . . . . Level 4 . | . . . . . . . . . . . . . . . . . Level 5 . | . . . . . . . . . . . . . . . . . High Security . | . . . . . . . . . . . . . . . . . Max Security . | . . . . . . . . . . . . . . . . . Squads Dispatched 29 | . 5 . 2 . . . 5 5 . 1 . 4 2 . 1 4 Investigation 17 | . 4 . 1 . . . 2 3 . . . 4 2 . . 1 Extermination 2 | . . . . . . . . 1 . . . . . . . 1 Reinforcement 10 | . 1 . 1 . . . 3 1 . 1 . . . . 1 2 Assault . | . . . . . . . . . . . . . . . . . Garrison . | . . . . . . . . . . . . . . . . . Intercept . | . . . . . . . . . . . . . . . . . Searches Triggered . | . . . . . . . . . . . . . . . . . Construction Impeded 1 | . . . . . . . 1 . . . . . . . . . Haulers Reinforced . | . . . . . . . . . . . . . . . . . Active Scanning Responses . | . . . . . . . . . . . . . . . . . Cargo Convoy Interrupts 1 | . . . . . . . . 1 . . . . . . . . Stealth | -11 -10 -10 -9 -9 -9 -8 -8 -7 -6 -6 -5 -5 -5 -5 -5 -4 --------- Run | Yrd Mat Min Mat Min Exi Min Mat Fac Fac DSF Fac Ext Cet Arc Hub Fac Distress Signals 8 | . 1 . 1 . . . 2 . . . . 1 1 . 1 1 Communications Jammed . | . . . . . . . . . . . . . . . . . Distress Signals . | . . . . . . . . . . . . . . . . . Times Spotted 164 | . 29 8 13 2 . . 27 13 1 4 1 19 14 4 8 21 Peak Tracking Total 12 | . 5 3 3 2 . . 7 2 1 3 1 6 11 4 7 12 Tactical Retreats 12 | . 1 . 1 . . . 2 . . 1 . 2 1 . 1 3 Traps | -11 -10 -10 -9 -9 -9 -8 -8 -7 -6 -6 -5 -5 -5 -5 -5 -4 ------- Run | Yrd Mat Min Mat Min Exi Min Mat Fac Fac DSF Fac Ext Cet Arc Hub Fac Traps Triggered 16 | . 8 . . . . . . 2 1 . . 3 . . . 2 Indirectly . | . . . . . . . . . . . . . . . . . Trap Hack Attempts . | . . . . . . . . . . . . . . . . . Triggered . | . . . . . . . . . . . . . . . . . Disarmed . | . . . . . . . . . . . . . . . . . Reprogrammed . | . . . . . . . . . . . . . . . . . Reused . | . . . . . . . . . . . . . . . . . Traps Extracted . | . . . . . . . . . . . . . . . . . Installed . | . . . . . . . . . . . . . . . . . Triggered 1 | . . . . . . . . 1 . . . . . . . . Machines | -11 -10 -10 -9 -9 -9 -8 -8 -7 -6 -6 -5 -5 -5 -5 -5 -4 ---------- Run | Yrd Mat Min Mat Min Exi Min Mat Fac Fac DSF Fac Ext Cet Arc Hub Fac Machines Disabled 5 | . . . . 1 . . 2 . . . . 2 . . . . Max in Single Turn 1 | . . . . 1 . . 1 . . . . 1 . . . . Garrison Access 1 | . . . . . . . . 1 . . . . . . . . Machines Repaired . | . . . . . . . . . . . . . . . . . Machines Dismantled . | . . . . . . . . . . . . . . . . . Machines Sabotaged . | . . . . . . . . . . . . . . . . . Overloaded Fab Kills . | . . . . . . . . . . . . . . . . . Hacking | -11 -10 -10 -9 -9 -9 -8 -8 -7 -6 -6 -5 -5 -5 -5 -5 -4 --------- Run | Yrd Mat Min Mat Min Exi Min Mat Fac Fac DSF Fac Ext Cet Arc Hub Fac Machines Accessed 46 | . 6 . 2 . 1 . 5 14 4 . 2 5 3 . 2 2 Terminals 31 | . 6 . . . . . 4 8 2 . 1 5 3 . 2 . Fabricators 4 | . . . . . . . . 2 1 . . . . . . 1 Repair Stations 5 | . . . 1 . . . 1 2 . . . . . . . 1 Recycling Units 3 | . . . 1 . . . . 1 1 . . . . . . . Scanalyzers 1 | . . . . . . . . . . . 1 . . . . . Garrison Access 1 | . . . . . . . . 1 . . . . . . . . Total Hacks 111 | . 16 . 4 . 1 . 12 31 5 . 5 17 13 . 2 5 Successful 51 | . 6 . 1 . 1 . 7 18 5 . 1 4 4 . 2 2 Failed 60 | . 10 . 3 . . . 5 13 . . 4 13 9 . . 3 Catastrophic 12 | . 1 . 1 . . . 2 3 . . . 1 3 . . 1 Database Lockouts . | . . . . . . . . . . . . . . . . . Manual 46 | . 13 . . . 1 . 7 14 2 . 3 4 . . 2 . Terminals 81 | . 16 . . . . . 10 17 3 . 3 17 13 . 2 . Fabricators 4 | . . . . . . . . 2 1 . . . . . . 1 Repair Stations 15 | . . . 2 . . . 2 7 . . . . . . . 4 Recycling Units 7 | . . . 2 . . . . 4 1 . . . . . . . Scanalyzers 2 | . . . . . . . . . . . 2 . . . . . Garrison Access 1 | . . . . . . . . 1 . . . . . . . . Terminal Hacks 23 | . 3 . . . 1 . 3 5 2 . 1 4 4 . . . Record 7 | . . . . . . . . 1 . . . 2 4 . . . Robot Analysis 2 | . 2 . . . . . . . . . . . . . . . Prototype ID Bank 1 | . . . . . . . . . . . 1 . . . . . Open Door 1 | . . . . . . . . . . . . 1 . . . . Open DSF 3 | . . . . . . . . 2 1 . . . . . . . Alert Level 2 | . . . . . . . . 1 1 . . . . . . . Unreport Threat 4 | . 1 . . . . . 2 1 . . . . . . . . Recall Investigation 1 | . . . . . . . 1 . . . . . . . . . Recall Reinforcements 1 | . . . . . . . . . . . . 1 . . . . Derelict Proto ID Bank 1 | . . . . . 1 . . . . . . . . . . . Fabricator Hacks 3 | . . . . . . . . 2 1 . . . . . . . Network Status 2 | . . . . . . . . 1 1 . . . . . . . Build 1 | . . . . . . . . 1 . . . . . . . . Repair Station Hacks 10 | . . . . . . . 2 6 . . . . . . . 2 Scan Component 5 | . . . . . . . 1 3 . . . . . . . 1 Repair 5 | . . . . . . . 1 3 . . . . . . . 1 Recycling Unit Hacks 4 | . . . 1 . . . . 2 1 . . . . . . . Retrieve Matter 1 | . . . . . . . . 1 . . . . . . . . Retrieve Components 3 | . . . 1 . . . . 1 1 . . . . . . . Scanalyzer . | . . . . . . . . . . . . . . . . . Garrison Access Hacks 1 | . . . . . . . . 1 . . . . . . . . Seal Access 1 | . . . . . . . . 1 . . . . . . . . Unauthorized Hacks 10 | . 3 . . . . . 2 2 1 . . . . . 2 . Terminals 10 | . 3 . . . . . 2 2 1 . . . . . 2 . Botnet 8 | . 2 . . . . . 1 2 1 . . . . . 2 . Operators 2 | . 1 . . . . . 1 . . . . . . . . . Fabricators . | . . . . . . . . . . . . . . . . . Repair Stations . | . . . . . . . . . . . . . . . . . Recycling Units . | . . . . . . . . . . . . . . . . . Scanalyzers . | . . . . . . . . . . . . . . . . . Garrison Access . | . . . . . . . . . . . . . . . . . Data Cores Recovered 2 | . . . . . . . . . 1 . . 1 . . . . Used 2 | . . . . . . . . . 1 . . 1 . . . . Hacking Detections 34 | . 6 . 1 . . . 4 10 1 . 3 4 3 . 1 1 Full Trace Events 16 | . 4 . 1 . . . 3 3 . . . 3 2 . . . Feedback Events 5 | . 1 . . . . . 1 . . . . . 3 . . . Corruption 4 | . 1 . . . . . 1 . . . . . 2 . . . Hackware Fried 1 | . . . . . . . . . . . . . 1 . . . Feedback Blocked 1 | . . . . . . . . . . . . 1 . . . . Robot Schematics Acquired . | . . . . . . . . . . . . . . . . . Robots Built 3 | . . . . . . . . 3 . . . . . . . . Authchips 1 | . . . . . . . . 1 . . . . . . . . Time 38 | . . . . . . . . 38 . . . . . . . . Total Robot Build Rating 9 | . . . . . . . . 9 . . . . . . . . Part Schematics Acquired . | . . . . . . . . . . . . . . . . . Parts Built . | . . . . . . . . . . . . . . . . . Authchips . | . . . . . . . . . . . . . . . . . Time . | . . . . . . . . . . . . . . . . . Total Part Build Rating . | . . . . . . . . . . . . . . . . . Parts Repaired 5 | . . . . . . . 1 3 . . . . . . . 1 Time 217 | . . . . . . . 108 71 . . . . . . . 38 Parts Recycled . | . . . . . . . . . . . . . . . . . Recycled Matter . | . . . . . . . . . . . . . . . . . Retrieved Matter . | . . . . . . . . . . . . . . . . . Retrieved Components 7 | . . . 4 . . . . . 3 . . . . . . . Parts Scanalyzed . | . . . . . . . . . . . . . . . . . Part Schematics Acquired . | . . . . . . . . . . . . . . . . . Parts Damaged . | . . . . . . . . . . . . . . . . . Bothacking | -11 -10 -10 -9 -9 -9 -8 -8 -7 -6 -6 -5 -5 -5 -5 -5 -4 ------------ Run | Yrd Mat Min Mat Min Exi Min Mat Fac Fac DSF Fac Ext Cet Arc Hub Fac Used RIF Installer . | . . . . . . . . . . . . . . . . . Robots Hacked . | . . . . . . . . . . . . . . . . . Non-combat . | . . . . . . . . . . . . . . . . . Combat . | . . . . . . . . . . . . . . . . . Robot Hacks Applied . | . . . . . . . . . . . . . . . . . Relay Couplers Released . | . . . . . . . . . . . . . . . . . Fabnet Peak Effective % . | . . . . . . . . . . . . . . . . . Robots Rewired . | . . . . . . . . . . . . . . . . . Allies Hacked . | . . . . . . . . . . . . . . . . . Hacks Repelled . | . . . . . . . . . . . . . . . . . Allies | -11 -10 -10 -9 -9 -9 -8 -8 -7 -6 -6 -5 -5 -5 -5 -5 -4 -------- Run | Yrd Mat Min Mat Min Exi Min Mat Fac Fac DSF Fac Ext Cet Arc Hub Fac Total Allies 10 | . . . . 2 . . . 3 . . . 5 . . . . Largest Group 5 | . . . . 2 2 . . 3 . . . 5 . . . . Highest-Rated Group 159 | . . . . 49 49 . . 75 . . . 159 . . . . Highest-Rated Ally 39 | . . . . 31 31 . . 25 . . . 39 . . . . Total Orders . | . . . . . . . . . . . . . . . . . Ally Attacks 44 | . . . . . . . . 24 . . . 20 . . . . Total Damage 930 | . . . . . . . . 453 . . . 477 . . . . Kills 5 | . . . . . . . . 3 . . . 2 . . . . Allies Corrupted . | . . . . . . . . . . . . . . . . . Allies Melted . | . . . . . . . . . . . . . . . . . Intel | -11 -10 -10 -9 -9 -9 -8 -8 -7 -6 -6 -5 -5 -5 -5 -5 -4 ------- Run | Yrd Mat Min Mat Min Exi Min Mat Fac Fac DSF Fac Ext Cet Arc Hub Fac Robot Analysis Total 2 | . 2 . . . . . . . . . . . . . . . Derelict Logs Recovered 2 | . . 1 . 1 . . . . . . . . . . . . Drone Launches . | . . . . . . . . . . . . . . . . . Drone Recoveries . | . . . . . . . . . . . . . . . . . Exploration | -11 -10 -10 -9 -9 -9 -8 -8 -7 -6 -6 -5 -5 -5 -5 -5 -4 ------------- Run | Yrd Mat Min Mat Min Exi Min Mat Fac Fac DSF Fac Ext Cet Arc Hub Fac Turns Passed 7522 | 38 1256 371 429 653 411 253 702 1105 522 89 182 570 127 29 85 700 Spaces Moved 6091 | 28 607 116 170 352 360 274 479 926 352 36 261 1015 198 49 152 716 Core 94 | 1 8 2 . . . . . . . 4 . . . . 2 77 Treads 873 | . 221 . 119 352 114 . . . . . . . . . . 67 Legs 2764 | . 290 114 51 . 246 274 479 926 352 32 . . . . . . Wheels 115 | 27 88 . . . . . . . . . . . . . . . Hover 332 | . . . . . . . . . . . . . . . . 332 Flight 1913 | . . . . . . . . . . . 261 1015 198 49 150 240 Fastest Speed 26 | 50 95 190 160 160 90 90 90 90 107 107 26 26 37 45 37 37 Average Speed 91 | 90 158 260 177 160 112 90 90 90 109 169 26 28 37 45 47 72 Slowest Speed 450 | 95 350 400 240 160 170 90 90 90 110 450 32 37 45 45 150 170 Overloaded Moves . | . . . . . . . . . . . . . . . . . Propulsion Burnouts . | . . . . . . . . . . . . . . . . . Robots Hopped . | . . . . . . . . . . . . . . . . . Cave-ins Triggered 2 | . . . . . . . . . . . . 1 1 . . . Exploration Rate (%) 43 | 3 94 19 25 79 91 50 45 28 10 43 10 69 68 58 19 23 Regions Visited 16 Branch Regions 8 Pre-discovered Areas 1 | . . 1 . . . . . . . . . . . . . . Known Exits Taken 11 | . . . 1 1 1 1 1 1 1 . 1 1 1 . 1 . Unknown Exits Taken 4 | 1 1 1 . . . . . . . . . . . 1 . . Scrap Searched 3 | . . . . 2 . 1 . . . . . . . . . . Spaces Dug 30 | . . . . . . . . . . . . 11 10 1 1 7 Terrain Destroyed 64 | . . . . . . . 34 . . . . 11 10 1 1 7 Melee 30 | . . . . . . . . . . . . 11 10 1 1 7 Projectile . | . . . . . . . . . . . . . . . . . AOE 34 | . . . . . . . 34 . . . . . . . . . Terrain Rammed . | . . . . . . . . . . . . . . . . . Walls Destroyed . | . . . . . . . . . . . . . . . . . Machines Disabled . | . . . . . . . . . . . . . . . . . Actions | -11 -10 -10 -9 -9 -9 -8 -8 -7 -6 -6 -5 -5 -5 -5 -5 -4 --------- Run | Yrd Mat Min Mat Min Exi Min Mat Fac Fac DSF Fac Ext Cet Arc Hub Fac Total 7496 | 37 743 147 241 418 368 278 681 1147 489 51 372 1235 228 52 159 850 Wait 776 | . 8 5 16 40 . 4 140 120 114 . 97 147 14 . 1 70 Move 6073 | 27 606 115 169 351 359 273 478 925 351 35 260 1013 196 48 151 716 Hop . | . . . . . . . . . . . . . . . . . Pick Up 64 | 4 10 1 3 2 . . 8 21 6 . 2 2 1 . 1 3 Fast Attach 79 | 6 17 2 1 1 2 . 2 9 4 1 2 7 . . 4 21 Attach 51 | . 1 1 6 . . . 8 5 3 3 10 4 1 2 . 7 Detach 21 | . 5 . 3 1 . . . 4 1 . . 3 1 . . 3 Swap 36 | . 7 1 6 4 . . 7 6 2 . . 2 . . . 1 Drop 53 | . 9 1 5 6 7 . . 14 7 1 1 2 . . . . Fire 199 | . 80 21 32 13 . 1 37 14 . . . . . . . 1 Melee 123 | . . . . . . . 1 29 1 11 . 42 14 2 2 21 Ram 7 | . . . . . . . . . . . . . . . . 7 Kick . | . . . . . . . . . . . . . . . . . Crush . | . . . . . . . . . . . . . . . . . Escape Stasis 14 | . . . . . . . . . . . . 13 1 . . . Rewire . | . . . . . . . . . . . . . . . . . Trap . | . . . . . . . . . . . . . . . . . Miscellaneous . | . . . . . . . . . . . . . . . . . Route ------- -11/Scrapyard -10/Materials (discovered 4 exits: *Mat x3 / [*Min]) -10/Mines -9/Materials -9/Mines (discovered 3 exits: *Mat x2 / *Exi) -9/Exiles (discovered 2 exits: *Min x2) -8/Mines -8/Materials (discovered 2 exits: *Fac x2) -7/Factory -6/Factory -6/DSF -5/Factory (discovered 2 exits: *Fac / *Ext) -5/Extension (discovered 2 exits: *Fac / *Cet) -5/Cetus (discovered 2 exits: *Fac / *Arc) -5/Archives -5/Hub_04(d) -4/Factory History --------- Turn | Location | Event 21 | -11/Scrapyard | Discovered new exit (range 15) 39 | -11/Scrapyard | Entered Materials 236 | -10/Materials | Discovered new exit (range 8) 318 | -10/Materials | Build established: Mutant 736 | -10/Materials | Lost 3 parts (2n1w) 738 | -10/Materials | Discovered new exit (range 11) 925 | -10/Materials | Discovered new exit (range 10) 1015 | -10/Materials | Build established: Scavenger-Mutant 1230 | -10/Materials | Discovered new exit (range 15) 1295 | -10/Materials | Entered Mines 1304 | -10/Mines | Core integrity fell below 50% 1311 | -10/Mines | Discovered new exit (range 11) 1369 | -10/Mines | Lost 4 parts (1p2n1w) 1435 | -10/Mines | Learned location of Zion (-7) 1549 | -10/Mines | Core integrity fell below 20% 1629 | -10/Mines | Build established: Mutant 1666 | -10/Mines | Entered Materials 1666 | -9/Materials | Evolved 2 slots: Utility x2 2033 | -9/Materials | Discovered new exit (range 11) 2094 | -9/Materials | Identified exit to Mines 2095 | -9/Materials | Entered Mines 2111 | -9/Mines | Build established: Scavenger-Skirmisher 2292 | -9/Mines | Learned Materials stockpile data 2380 | -9/Mines | Found a damaged Exp. Sensor Array with a note attached 2385 | -9/Mines | Found Prototype Device 2385 | -9/Mines | Identified Exp. Sensor Array 2405 | -9/Mines | Discovered new exit (range 5) 2410 | -9/Mines | Identified exit to Materials 2456 | -9/Mines | Discovered exit to Materials (range 5) 2689 | -9/Mines | Received a Rocket Launcher from a helpful Derelict 2739 | -9/Mines | Deemed a non-threat by the Exiles lab entrance 2739 | -9/Mines | Discovered new exit (range 5) 2744 | -9/Mines | Identified exit to Exiles 2748 | -9/Mines | Entered Exiles 2748 | -9/Exiles | Accompanied by 2 allies 2769 | -9/Exiles | Discovered new exit (range 16) 2778 | -9/Exiles | Led the pair of lost Derelicts to a safe place 2788 | -9/Exiles | Met 8R-AWN 2816 | -9/Exiles | Met EX-HEX 2857 | -9/Exiles | Met EX-BIN 2876 | -9/Exiles | Aligned with FarCom system 2878 | -9/Exiles | Given EX-Vault access code 2918 | -9/Exiles | Opened EX-Vault 2932 | -9/Exiles | Found Potential Leg 2935 | -9/Exiles | Found Potential Leg 2957 | -9/Exiles | Warned to stay clear of 0b10 Research branches 3004 | -9/Exiles | Met EX-DEC 3020 | -9/Exiles | Visited The Gauntlet 3145 | -9/Exiles | Discovered new exit (range 15) 3155 | -9/Exiles | Identified exit to Mines 3159 | -9/Exiles | Left Exiles lab with Potential Leg 3159 | -9/Exiles | Entered Mines 3404 | -8/Mines | Discovered exit to Materials (range 10) 3412 | -8/Mines | Entered Materials 3412 | -8/Materials | Evolved 2 slots: Utility x2 3535 | -8/Materials | Repaired Exp. Sensor Array 3918 | -8/Materials | Discovered new exit (range 19) 4014 | -8/Materials | Core integrity fell below 50% 4037 | -8/Materials | Lost 6 parts (2p1u3w) 4089 | -8/Materials | Discovered new exit (range 18) 4113 | -8/Materials | Identified exit to Factory 4114 | -8/Materials | Entered Factory 4114 | -7/Factory | Evolved 2 slots: Power x1, Utility x1 4148 | -7/Factory | Repaired Utility Shielding 4175 | -7/Factory | Repaired Lrg. Storage Unit 4508 | -7/Factory | Build established: Scavenger-Assassin 4822 | -7/Factory | Fabricated C-17 Slicer (x3) 4920 | -7/Factory | Cargo convoy interrupted 4923 | -7/Factory | Repaired Katana 5184 | -7/Factory | Discovered new exit (range 9) 5191 | -7/Factory | Identified exit to Factory 5219 | -7/Factory | Entered another Factory area 5219 | -6/Factory | Evolved 2 slots: Propulsion x2 5740 | -6/Factory | Identified exit to DSF 5741 | -6/Factory | Entered DSF 5750 | -6/DSF | Discovered new exit (range 22) 5764 | -6/DSF | Additional patrols routed to DSF 5817 | -6/DSF | Core integrity fell below 50% 5826 | -6/DSF | Identified exit to Factory 5830 | -6/DSF | Entered Factory 5830 | -5/Factory | Evolved 2 slots: Propulsion x1, Utility x1 5858 | -5/Factory | Lost 12 parts (2p4n4u2w) 5959 | -5/Factory | Discovered new exit (range 8) 6008 | -5/Factory | Discovered new exit (range 11) 6012 | -5/Factory | Identified exit to Extension 6012 | -5/Factory | Entered Extension 6109 | -5/Extension | Spotted B-75 Beast 6178 | -5/Extension | Build established: Hacker-Sprinter 6206 | -5/Extension | Crushed by falling debris 6230 | -5/Extension | Rescued a captive Derelict 6231 | -5/Extension | Rescued a captive Derelict 6236 | -5/Extension | Rescued a captive Derelict 6307 | -5/Extension | Rescued a captive Derelict 6308 | -5/Extension | Rescued a captive Derelict 6398 | -5/Extension | Lost 5 allies 6431 | -5/Extension | Lost 3 parts (2n1w) 6534 | -5/Extension | Spotted B-75 Beast 6569 | -5/Extension | Discovered new exit (range 16) 6569 | -5/Extension | Discovered new exit (range 16) 6575 | -5/Extension | Identified exit to Factory 6581 | -5/Extension | Identified exit to Cetus 6582 | -5/Extension | Entered Cetus 6589 | -5/Cetus | Spotted Cetus Guard 6589 | -5/Cetus | Spotted Cetus Guard 6590 | -5/Cetus | Spotted Cetus Guard 6592 | -5/Cetus | Lost 6 parts (2n3u1w) 6598 | -5/Cetus | Discovered exit to Factory (range 16) 6642 | -5/Cetus | Crushed by falling debris 6646 | -5/Cetus | Spotted Cetus Guard 6647 | -5/Cetus | Core integrity fell below 50% 6672 | -5/Cetus | Hacking Suite fried by hacking feedback 6702 | -5/Cetus | Discovered new exit (range 16) 6708 | -5/Cetus | Identified exit to Archives 6709 | -5/Cetus | Entered Archives 6728 | -5/Archives | Unable to access archive contents 6729 | -5/Archives | Discovered new exit (range 15) 6732 | -5/Archives | Core integrity fell below 20% 6738 | -5/Archives | Entered Hub_04(d) 6761 | -5/Hub_04(d) | Lost 6 parts (1n4u1w) 6820 | -5/Hub_04(d) | Discovered exit to Factory (range 9) 6823 | -5/Hub_04(d) | Entered Factory 6823 | -4/Factory | Evolved 2 slots: Utility x2 6867 | -4/Factory | Repaired Axe 7011 | -4/Factory | Lost 5 parts (1p3n1w) 7421 | -4/Factory | Core integrity fell below 50% 7442 | -4/Factory | Core integrity fell below 20% 7457 | -4/Factory | Lost 20 parts (2p8n8u2w) 7462 | -4/Factory | System corruption reached 10% 7523 | -4/Factory | Destroyed by P-70 Sage with Tesla Rifle Last Messages --------------- 07461_ Slammed into W-44 Eye. 07461_ Imp. Target Analyzer destroyed. 07461_ System corrupted by crushing effect (+4). 07461_ Destabilizing: Core damaged (-46). 07462_ Slammed into W-44 Eye. 07465_ Armor Integrity Analyzer destroyed. 07465_ System corrupted by crushing effect (+4). 07466_ Slammed into W-44 Eye. 07470_ Slug penetrates Wall. 07471_ Slammed into W-44 Eye. 07474_ System corrupted: Energy discharge (-22). 07489_ O-16 Technician: "IFF HANDSHAKE FAILED. SECURING TERMINAL." 07494_ Acquired Nuclear Pulse Array. 07498_ System corrupted: Energy discharge (-19). 07499_ ALERT: Hostiles spotted, dispatching reinforcements to Terminal F003. 07502_ Acquired Hvy. Disruptor Cannon. 07506_ Acquired Fusion Compressor. 07508_ Acquired Imp. Transmission Jammer. 07520_ System corrupted: Matter fused (-8). Map ----- +----------------------------------------------------+ | ?????????????????????????????????????????????????? | | ?????????????????????????????????????????????????? | | ?????????????????????????????????????????????????? | | ?????????????????????????????????????????????????? | | ?????????????????????????????????????????????????? | | ?????????????????????????????????????????????????? | | ?????????????????????????????????????????????????? | | ?????????????????????????????????????????????????? | | ?????????????????????????????????????????????????? | | ?????????????????????????????????????????????????? | | ?????????????????????????????????????????????????? | | ?????????????????????????????????????????????????? | | ?????????????????????????????????????????????????? | | ?????????????????????????????????????????????????? | | ?????????????????????????????????????????????????? | | ?????????????????????????????????????????????????? | | #####################????????????????????????????? | | #????????????????????????????? | | #????????????????????????????? | | #????????????????????????????? | | #????????????????????????????? | | ##############???????????????? | | # #???????????????? | | # !! #???????????????? | | ############# # !! #???????????????? | | ?????? ??# # !@ #???????????????? | | ?????? ?# # =#???????????????? | | ??????" """?# # ! #???????????????? | | ?????"" """ # # #???????????????? | | """ """ # # """p""" #???????????????? | | + # """ """ #???????????????? | | """ """ # # """ """ #???????????????? | | ?????"" """ # ^# #???????????????? | | ??????" """?# # #???????????????? | | ?????? ?# ######+############# ???????? | | ?????? ??# ??????? | | ????? ] ??# ??????? | | ?????######## ^ ??????? | | ??????# ??????? | | ??????# ??????? | | ??????# ??????? | | ??????# ??????? | | ??????# ##############+#### T####### ???????? | | ??????# ???# #??###???????????????? | | ????? ???# #????????????????????? | | ????? ???# #????????????????????? | | ?????? ????# #????????????????????? | | ???????? ??????# #????????????????????? | | ???????????????# #????????????????????? | | ???????????????# #????????????????????? | +----------------------------------------------------+ Best States ------------- Heat Dissipation 43 Energy Generation 38 Energy Capacity 480 Matter Stores 300 Matter Capacity 300 Sight Range 22 Robot Scan Range 20 Terrain Scan Density 10 ECM Strength 2 Jamming Range 14 Cloak Strength 2 Armor Coverage 150 Utility Shielding 33 Melee Speed Boost 20 Evasion (%) 72 Targeting Accuracy 8 Melee Accuracy 21 Target Analysis 9 Core Analysis 6 Armor Integrity Analysis 30 Recoil Reduction 2 Offensive Hacking 20 Defensive Hacking 10 Authchip Count 1 Item Schematics ----------------- None Robot Schematics ------------------ None Fabricated ------------ C-17 Slicer | x3 | -7/Factory | Preloaded, Authchip Alien Tech Used ----------------- None Achievements -------------- Deadly Force My Command Is Your Wish Challenges ------------ None Game ------ Seed StasisSlugCutter Manual? 0 Play Time 02:03:25 Cumulative 36.2 hours Start 2024.04.09 @ 08:56:56 End 2024.04.09 @ 11:29:39 Sessions 1 Manual Loads 0 Difficulty Rogue Special Mode None Game No. 93 Rogue 91 Adventurer 2 Explorer 0 Win Type - Total 0 Types 0/0/0/0/0/0/0/0/0 Lore% 28 Gallery% 34 Achievement% 26 Wizard Run 0 Options --------- Layout 0 ASCII 0 Keyboard 1 Movement Numpad Keybinds 0 Fullscreen 2 Font 18/SmallcapsGlow Map View 76x50 Zoom Use 0% Tactical HUD 1 Map Filters NONE Filters NONE Steam 1 RUN: 756715df-630c-4f07-aebb-82d9f0880b51